fUST/lending_fUST_20250424
["ID","MTS","AMOUNT","RATE_DAILY","PERIOD"]
[358824784,1745476240339,-500.0,0.00021917,2]
[358824785,1745476240350,-500.0,0.00021917,2]
[358824786,1745476240360,-538.85286299,0.00021917,2]
[358824787,1745476240370,-500.0,0.00021917,2]
[358824788,1745476240380,-500.0,0.00021917,2]
[358824789,1745476240390,-596.88768614,0.00021917,2]
[358824790,1745476240400,-500.0,0.00021917,2]
[358824791,1745476240410,-500.0,0.00021917,2]
[358824792,1745476240419,-500.0,0.00021917,2]
[358824793,1745476240429,-618.99,0.00021917,2]
[358824794,1745476240438,-596.95,0.00021917,2]
[358824795,1745476240448,-500.0,0.00021917,2]
[358824796,1745476240457,-500.0,0.00021917,2]
[358824797,1745476240467,-502.29740143,0.00021917,2]
[358824798,1745476240477,-500.0,0.00021917,2]
[358824799,1745476240486,-500.0,0.00021917,2]
[358824800,1745476240495,-500.0,0.00021917,2]
[358824801,1745476240505,-500.0,0.00021917,2]
[358824802,1745476240514,-1454.43,0.00021917,2]
[358824803,1745476240524,-500.0,0.00021917,2]
[358824804,1745476240534,-500.0,0.00021917,2]
[358824805,1745476240544,-507.36105845,0.00021917,2]
[358824806,1745476240553,-500.0,0.00021917,2]
[358824807,1745476240562,-500.38723207,0.00021917,2]
[358824808,1745476240572,-153.333084,0.00021917,2]
[358824809,1745476240581,-500.0,0.00021917,2]
[358824810,1745476240590,-151.0,0.00021917,2]
[358824811,1745476240600,-501.97390228,0.00021917,2]
[358824812,1745476240609,-151.0,0.00021917,2]
[358824813,1745476240618,-151.0,0.00021917,2]
[358824814,1745476240627,-501.92610732,0.00021917,2]
[358824815,1745476240639,-663.54,0.00021917,2]
[358824816,1745476240649,-294.49954688,0.00021917,2]
[358824817,1745476240658,-500.0,0.00021917,2]
[358824818,1745476240667,-500.0,0.00021917,2]
[358824819,1745476240677,-566.57,0.00021917,2]
[358824820,1745476240686,-500.0,0.00021917,2]
[358824821,1745476240695,-500.0,0.00021917,2]
[358824822,1745476240704,-500.0,0.00021917,2]
[358824823,1745476240713,-505.28617968,0.00021917,2]
[358824824,1745476240722,-526.56586309,0.00021917,2]
[358824825,1745476240731,-574.93,0.00021917,2]
[358824826,1745476240741,-500.0,0.00021917,2]
[358824827,1745476240750,-500.0,0.00021917,2]
[358824828,1745476240759,-500.0,0.00021917,2]
[358824829,1745476240768,-500.0,0.00021917,2]
[358824830,1745476240777,-500.0,0.00021917,2]
[358824831,1745476240787,-500.0,0.00021917,2]
[358824832,1745476240796,-242.248615,0.00021917,2]
[358824833,1745476240806,-500.0,0.00021917,2]
[358824834,1745476240815,-500.0,0.00021917,2]
[358824835,1745476240825,-503.05078921,0.00021917,2]
[358824836,1745476240834,-500.0,0.00021917,2]
[358824837,1745476240843,-671.03,0.00021917,2]
[358824838,1745476240852,-500.0,0.00021917,2]
[358824839,1745476240862,-500.0,0.00021917,2]
[358824840,1745476240871,-500.0,0.00021917,2]
[358824841,1745476240881,-500.0,0.00021917,2]
[358824842,1745476240890,-500.0,0.00021917,2]
[358824843,1745476240900,-154.212773,0.00021917,2]
[358824844,1745476240909,-500.0,0.00021917,2]
[358824845,1745476240918,-500.0,0.00021917,2]
[358824846,1745476240928,-500.0,0.00021917,2]
[358824847,1745476240937,-500.0,0.00021917,2]
[358824848,1745476240946,-500.0,0.00021917,2]
[358824849,1745476240956,-500.0,0.00021917,2]
[358824850,1745476240966,-500.0,0.00021917,2]
[358824851,1745476240975,-178.7,0.00021917,2]
[358824852,1745476240985,-500.0,0.00021917,2]
[358824853,1745476240994,-151.0,0.00021917,2]
[358824854,1745476241004,-1215.35,0.00021917,2]
[358824855,1745476241013,-10000.0,0.00021917,2]
[358824856,1745476241023,-10000.0,0.00021917,2]
[358824857,1745476241032,-504.04862104,0.00021917,2]
[358824858,1745476241041,-500.0,0.00021917,2]
[358824859,1745476241050,-500.0,0.00021917,2]
[358824860,1745476241061,-500.0,0.00021917,2]
[358824861,1745476241070,-507.82245022,0.00021917,2]
[358824862,1745476241079,-500.0,0.00021917,2]
[358824863,1745476241088,-500.0,0.00021917,2]
[358824864,1745476241097,-1181.28,0.00021917,2]
[358824865,1745476241107,-500.0,0.00021917,2]
[358824866,1745476241119,-151.0,0.00021917,2]
[358824867,1745476241129,-151.0,0.00021917,2]
[358824868,1745476241138,-151.0,0.00021917,2]
[358824869,1745476241147,-500.0,0.00021917,2]
[358824870,1745476241156,-503.08560404,0.00021917,2]
[358824871,1745476241166,-500.0,0.00021917,2]
[358824872,1745476241176,-500.0,0.00021917,2]
[358824873,1745476241188,-577.45,0.00021917,2]
[358824874,1745476241198,-501.12392354,0.00021917,2]
[358824875,1745476241207,-500.0,0.00021917,2]
[358824876,1745476241218,-791.77,0.00021917,2]
[358824877,1745476241233,-509.00609804,0.00021917,2]
[358824878,1745476241242,-500.0,0.00021917,2]
[358824879,1745476241251,-709.24,0.00021917,2]
[358824880,1745476241261,-500.0,0.00021917,2]
[358824881,1745476241271,-500.0,0.00021917,2]
[358824882,1745476241280,-802.14,0.00021917,2]
[358824883,1745476241290,-502.57285542,0.00021917,2]
[358824884,1745476241300,-500.0,0.00021917,2]
[358824885,1745476241310,-509.7,0.00021917,2]
[358824886,1745476241319,-500.0,0.00021917,2]
[358824887,1745476241331,-602.28,0.00021917,2]
[358824888,1745476241341,-500.0,0.00021917,2]
[358824889,1745476241350,-500.0,0.00021917,2]
[358824890,1745476241359,-715.58,0.00021917,2]
[358824891,1745476241369,-500.0,0.00021917,2]
[358824892,1745476241379,-755.61,0.00021917,2]
[358824893,1745476241389,-500.0,0.00021917,2]
[358824894,1745476241398,-501.06601653,0.00021917,2]
[358824895,1745476241410,-500.0,0.00021917,2]
[358824896,1745476241420,-500.0,0.00021917,2]
[358824897,1745476241429,-500.0,0.00021917,2]
[358824898,1745476241438,-151.899093,0.00021917,2]
[358824899,1745476241448,-500.0,0.00021917,2]
[358824900,1745476241458,-500.0,0.00021917,2]
[358824901,1745476241468,-500.0,0.00021917,2]
[358824902,1745476241478,-500.0,0.00021917,2]
[358824903,1745476241488,-500.0,0.00021917,2]
[358824904,1745476241498,-500.0,0.00021917,2]
[358824905,1745476241507,-500.0,0.00021917,2]
[358824906,1745476241516,-500.0,0.00021917,2]
[358824907,1745476241526,-500.0,0.00021917,2]
[358824908,1745476241536,-157.82585272,0.00021917,2]
[358824909,1745476241546,-502.88057313,0.00021917,2]
[358824910,1745476241668,-500.0,0.00021917,2]
[358824911,1745476241679,-500.0,0.00021917,2]
[358824912,1745476241688,-810.9,0.00021917,2]
[358824913,1745476241697,-500.0,0.00021917,2]
[358824914,1745476241706,-500.0,0.00021917,2]
[358824915,1745476241715,-510.88343741,0.00021917,2]
[358824916,1745476241725,-500.0,0.00021917,2]
[358824917,1745476241734,-355.56288096,0.00021917,2]
[358824918,1745476241744,-503.83614825,0.00021917,2]
[358824919,1745476241753,-500.0,0.00021917,2]
[358824920,1745476241762,-500.0,0.00021917,2]
[358824921,1745476241771,-500.0,0.00021917,2]
[358824922,1745476241781,-1855.96,0.00021917,2]
[358824923,1745476241790,-504.05138199,0.00021917,2]
[358824924,1745476241799,-500.0,0.00021917,2]
[358824925,1745476241810,-500.0,0.00021917,2]
[358824926,1745476241821,-516.70850019,0.00021917,2]
[358824927,1745476241830,-500.0,0.00021917,2]
[358824928,1745476241841,-1258.5,0.00021917,2]
[358824929,1745476241851,-500.0,0.00021917,2]
[358824930,1745476241860,-500.0,0.00021917,2]
[358824931,1745476241870,-500.0,0.00021917,2]
[358824932,1745476241879,-500.0,0.00021917,2]
[358824933,1745476241889,-502.34817361,0.00021917,2]
[358824934,1745476241898,-500.0,0.00021917,2]
[358824935,1745476241907,-500.0,0.00021917,2]
[358824936,1745476241917,-500.0,0.00021917,2]
[358824937,1745476241926,-502.26858678,0.00021917,2]
[358824938,1745476241935,-500.0,0.00021917,2]
[358824939,1745476241945,-500.82817405,0.00021917,2]
[358824940,1745476241954,-500.0,0.00021917,2]
[358824941,1745476241964,-500.0,0.00021917,2]
[358824942,1745476241974,-500.8713946,0.00021917,2]
[358824943,1745476241984,-184.79700741,0.00021917,2]
[358824944,1745476241993,-500.0,0.00021917,2]
[358824945,1745476242002,-500.0,0.00021917,2]
[358824946,1745476242012,-832.93,0.00021917,2]
[358824947,1745476242022,-624.23,0.00021917,2]
[358824948,1745476242031,-500.0,0.00021917,2]
[358824949,1745476242040,-151.0,0.00021917,2]
[358824950,1745476242049,-151.0,0.00021917,2]
[358824951,1745476242059,-151.0,0.00021917,2]
[358824952,1745476242068,-151.0,0.00021917,2]
[358824953,1745476242078,-500.0,0.00021917,2]
[358824954,1745476242087,-500.0,0.00021917,2]
[358824955,1745476242096,-500.0,0.00021917,2]
[358824956,1745476242105,-2104.23,0.00021917,2]
[358824957,1745476242118,-500.0,0.00021917,2]
[358824958,1745476242127,-500.0,0.00021917,2]
[358824959,1745476242136,-500.0,0.00021917,2]
[358824960,1745476242145,-500.0,0.00021917,2]
[358824961,1745476242154,-500.0,0.00021917,2]
[358824962,1745476242164,-504.044517,0.00021917,2]
[358824963,1745476242173,-874.96,0.00021917,2]
[358824964,1745476242182,-500.0,0.00021917,2]
[358824965,1745476242191,-698.5,0.00021917,2]
[358824966,1745476242201,-545.21699059,0.00021917,2]
[358824967,1745476242210,-500.0,0.00021917,2]
[358824968,1745476242220,-619.88658735,0.00021917,2]
[358824969,1745476242229,-500.0,0.00021917,2]
[358824970,1745476242238,-500.0,0.00021917,2]
[358824971,1745476242248,-1135.96,0.00021917,2]
[358824972,1745476242258,-500.0,0.00021917,2]
[358824973,1745476242267,-500.0,0.00021917,2]
[358824974,1745476242279,-500.0,0.00021917,2]
[358824975,1745476242289,-500.0,0.00021917,2]
[358824976,1745476242298,-501.95989591,0.00021917,2]
[358824977,1745476242307,-500.0,0.00021917,2]
[358824978,1745476242317,-500.0,0.00021917,2]
[358824979,1745476242326,-500.0,0.00021917,2]
[358824980,1745476242336,-151.579286,0.00021917,2]
[358824981,1745476242345,-500.0,0.00021917,2]
[358824982,1745476242355,-500.0,0.00021917,2]
[358824983,1745476242366,-500.0,0.00021917,2]
[358824984,1745476242376,-151.0,0.00021917,2]
[358824985,1745476242386,-151.0,0.00021917,2]
[358824986,1745476242395,-151.0,0.00021917,2]
[358824987,1745476242404,-151.0,0.00021917,2]
[358824988,1745476242413,-500.0,0.00021917,2]
[358824989,1745476242423,-500.0,0.00021917,2]
[358824990,1745476242433,-500.0,0.00021917,2]
[358824991,1745476242442,-582.96485834,0.00021917,2]
[358824992,1745476242451,-500.0,0.00021917,2]
[358824993,1745476242461,-500.0,0.00021917,2]
[358824994,1745476242470,-500.0,0.00021917,2]
[358824995,1745476242480,-661.39,0.00021917,2]
[358824996,1745476242489,-530.31497209,0.00021917,2]
[358824997,1745476242498,-500.0,0.00021917,2]
[358824998,1745476242508,-502.36080311,0.00021917,2]
[358824999,1745476242518,-500.0,0.00021917,2]
[358825000,1745476242528,-500.0,0.00021917,2]
[358825001,1745476242537,-500.0,0.00021917,2]
[358825002,1745476242546,-500.0,0.00021917,2]
[358825003,1745476242555,-151.0,0.00021917,2]
[358825004,1745476242565,-151.0,0.00021917,2]
[358825005,1745476242574,-151.0,0.00021917,2]
[358825006,1745476242584,-500.0,0.00021917,2]
[358825007,1745476242593,-500.0,0.00021917,2]
[358825008,1745476242602,-500.0,0.00021917,2]
[358825009,1745476242611,-951.63,0.00021917,2]
[358825010,1745476242621,-500.0,0.00021917,2]
[358825011,1745476242630,-500.0,0.00021917,2]
[358825012,1745476242640,-694.81,0.00021917,2]
[358825013,1745476242649,-711.74,0.00021917,2]
[358825014,1745476242658,-1123.82,0.00021917,2]
[358825015,1745476242668,-500.0,0.00021917,2]
[358825016,1745476242677,-247.53432834,0.00021917,2]
[358825017,1745476242686,-567.22189023,0.00021917,2]
[358825018,1745476242695,-500.0,0.00021917,2]
[358825019,1745476242704,-500.0,0.00021917,2]
[358825020,1745476242713,-500.0,0.00021917,2]
[358825021,1745476242723,-500.0,0.00021917,2]
[358825022,1745476242732,-500.0,0.00021917,2]
[358825023,1745476242741,-500.0,0.00021917,2]
[358825024,1745476242750,-500.0,0.00021917,2]
[358825025,1745476242760,-500.0,0.00021917,2]
[358825026,1745476242769,-511.24805889,0.00021917,2]
[358825027,1745476242779,-500.0,0.00021917,2]
[358825028,1745476242788,-500.0,0.00021917,2]
[358825029,1745476242798,-500.0,0.00021917,2]
[358825030,1745476242807,-500.0,0.00021917,2]
[358825031,1745476242816,-500.0,0.00021917,2]
[358825032,1745476242825,-500.0,0.00021917,2]
[358825033,1745476242834,-500.0,0.00021917,2]
[358825034,1745476242843,-500.0,0.00021917,2]
[358825035,1745476242852,-506.94,0.00021917,2]
[358825036,1745476242861,-500.0,0.00021917,2]
[358825037,1745476242871,-500.0,0.00021917,2]
[358825038,1745476242880,-500.0,0.00021917,2]
[358825039,1745476242890,-872.99,0.00021917,2]
[358825040,1745476242899,-500.0,0.00021917,2]
[358825041,1745476242909,-500.0,0.00021917,2]
[358825042,1745476242918,-152.01562,0.00021917,2]
[358825043,1745476242928,-500.0,0.00021917,2]
[358825044,1745476242937,-500.0,0.00021917,2]
[358825045,1745476242947,-500.0,0.00021917,2]
[358825046,1745476242956,-500.0,0.00021917,2]
[358825047,1745476242965,-500.0,0.00021917,2]
[358825048,1745476242975,-500.0,0.00021917,2]
[358825049,1745476242985,-500.0,0.00021917,2]
[358825050,1745476242994,-151.0,0.00021917,2]
[358825051,1745476243003,-151.0,0.00021917,2]
[358825052,1745476243012,-166.680567,0.00021917,2]
[358825053,1745476243022,-500.0,0.00021917,2]
[358825054,1745476243031,-500.0,0.00021917,2]
[358825055,1745476243040,-500.0,0.00021917,2]
[358825057,1745476243050,-524.44760548,0.00021917,2]
[358825058,1745476243059,-500.0,0.00021917,2]
[358825059,1745476243068,-500.0,0.00021917,2]
[358825060,1745476243078,-500.0,0.00021917,2]
[358825061,1745476243087,-500.0,0.00021917,2]
[358825062,1745476243097,-500.0,0.00021917,2]
[358825063,1745476243106,-622.05,0.00021917,2]
[358825065,1745476243120,-500.0,0.00021917,2]
[358825067,1745476243129,-500.0,0.00021917,2]
[358825068,1745476243139,-500.0,0.00021917,2]
[358825069,1745476243148,-500.0,0.00021917,2]
[358825070,1745476243158,-500.0,0.00021917,2]
[358825071,1745476243168,-500.0,0.00021917,2]
[358825072,1745476243177,-788.23,0.00021917,2]
[358825073,1745476243186,-500.0,0.00021917,2]
[358825074,1745476243196,-534.04,0.00021917,2]
[358825075,1745476243206,-500.0,0.00021917,2]
[358825076,1745476243215,-500.70716535,0.00021917,2]
[358825077,1745476243225,-500.0,0.00021917,2]
[358825078,1745476243234,-500.0,0.00021917,2]
[358825079,1745476243244,-500.0,0.00021917,2]
[358825080,1745476243254,-500.0,0.00021917,2]
[358825081,1745476243263,-500.0,0.00021917,2]
[358825082,1745476243274,-500.0,0.00021917,2]
[358825083,1745476243283,-500.0,0.00021917,2]
[358825084,1745476243293,-500.0,0.00021917,2]
[358825085,1745476243303,-500.0,0.00021917,2]
[358825086,1745476243312,-500.0,0.00021917,2]
[358825087,1745476243322,-500.0,0.00021917,2]
[358825088,1745476243331,-500.0,0.00021917,2]
[358825089,1745476243341,-500.0,0.00021917,2]
[358825090,1745476243350,-500.0,0.00021917,2]
[358825091,1745476243360,-500.0,0.00021917,2]
[358825092,1745476243369,-585.24,0.00021917,2]
[358825093,1745476243378,-500.0,0.00021917,2]
[358825094,1745476243388,-500.0,0.00021917,2]
[358825095,1745476243398,-500.0,0.00021917,2]
[358825096,1745476243407,-500.0,0.00021917,2]
[358825097,1745476243416,-605.54,0.00021917,2]
[358825098,1745476243427,-500.0,0.00021917,2]
[358825099,1745476243437,-1681.18,0.00021917,2]
[358825100,1745476243446,-1043.04,0.00021917,2]
[358825101,1745476243455,-505.99046163,0.00021917,2]
[358825102,1745476243465,-506.19261283,0.00021917,2]
[358825103,1745476243474,-508.81,0.00021917,2]
[358825104,1745476243483,-500.0,0.00021917,2]
[358825105,1745476243493,-151.2654259,0.00021917,2]
[358825106,1745476243502,-500.0,0.00021917,2]
[358825107,1745476243512,-500.0,0.00021917,2]
[358825108,1745476243522,-1143.38,0.00021917,2]
[358825109,1745476243532,-500.0,0.00021917,2]
[358825110,1745476243541,-508.9880617,0.00021917,2]
[358825111,1745476243551,-1380.11,0.00021917,2]
[358825112,1745476243561,-500.0,0.00021917,2]
[358825113,1745476243571,-1662.88,0.00021917,2]
[358825114,1745476243581,-500.0,0.00021917,2]
[358825115,1745476243591,-1218.09,0.00021917,2]
[358825116,1745476243600,-501.06019913,0.00021917,2]
[358825117,1745476243610,-500.0,0.00021917,2]
[358825118,1745476243619,-500.0,0.00021917,2]
[358825119,1745476243628,-500.0,0.00021917,2]
[358825120,1745476243638,-500.0,0.00021917,2]
[358825121,1745476243647,-500.0,0.00021917,2]
[358825122,1745476243657,-506.47,0.00021917,2]
[358825123,1745476243667,-441.35833786,0.00021917,2]
[358825124,1745476243676,-500.0,0.00021917,2]
[358825125,1745476243686,-500.0,0.00021917,2]
[358825126,1745476243695,-1145.39,0.00021917,2]
[358825127,1745476243704,-570.56674627,0.00021917,2]
[358825128,1745476243714,-505.97162203,0.00021917,2]
[358825129,1745476243723,-500.0,0.00021917,2]
[358825130,1745476243732,-520.20030811,0.00021917,2]
[358825131,1745476243742,-1359.28,0.00021917,2]
[358825132,1745476243751,-500.0,0.00021917,2]
[358825133,1745476243760,-500.0,0.00021917,2]
[358825134,1745476243771,-500.0,0.00021917,2]
[358825135,1745476243780,-552.97883927,0.00021917,2]
[358825136,1745476243790,-663.4,0.00021917,2]
[358825137,1745476243799,-500.0,0.00021917,2]
[358825138,1745476243809,-500.0,0.00021917,2]
[358825139,1745476243818,-500.0,0.00021917,2]
[358825140,1745476243827,-1185.55,0.00021917,2]
[358825141,1745476243837,-500.0,0.00021917,2]
[358825142,1745476243846,-500.0,0.00021917,2]
[358825143,1745476243855,-507.08012579,0.00021917,2]
[358825144,1745476243864,-500.0,0.00021917,2]
[358825145,1745476243873,-383.1626213,0.00021917,2]
[358825146,1745476243882,-500.0,0.00021917,2]
[358825147,1745476243892,-700.08,0.00021917,2]
[358825148,1745476243901,-500.0,0.00021917,2]
[358825149,1745476243912,-500.0,0.00021917,2]
[358825150,1745476244031,-500.0,0.00021917,2]
[358825151,1745476244041,-3450.61,0.00021917,2]
[358825152,1745476244051,-3450.61,0.00021917,2]
[358825153,1745476244060,-3450.61,0.00021917,2]
[358825154,1745476244071,-3450.61,0.00021917,2]
[358825155,1745476244080,-3450.61,0.00021917,2]
[358825156,1745476244090,-3450.61,0.00021917,2]
[358825157,1745476244099,-3450.61,0.00021917,2]
[358825158,1745476244109,-500.0,0.00021917,2]
[358825159,1745476244123,-3450.61,0.00021917,2]
[358825160,1745476244133,-3450.61,0.00021917,2]
[358825161,1745476244142,-3450.61,0.00021917,2]
[358825162,1745476244152,-3450.61,0.00021917,2]
[358825163,1745476244161,-3450.61,0.00021917,2]
[358825164,1745476244171,-3450.61,0.00021917,2]
[358825165,1745476244180,-3450.61,0.00021917,2]
[358825166,1745476244190,-3450.61,0.00021917,2]
[358825167,1745476244199,-3450.61,0.00021917,2]
[358825168,1745476244208,-280.27331324,0.00021917,2]
[358825169,1745476244218,-3450.61,0.00021917,2]
[358825170,1745476244227,-3450.61,0.00021917,2]
[358825171,1745476244237,-3450.61,0.00021917,2]
[358825172,1745476244246,-3450.61,0.00021917,2]
[358825173,1745476244256,-3450.61,0.00021917,2]
[358825174,1745476244265,-3450.61,0.00021917,2]
[358825175,1745476244276,-3450.61,0.00021917,2]
[358825176,1745476244285,-3450.67332541,0.00021917,2]
[358825177,1745476244295,-185.55971792,0.00021917,2]
[358825178,1745476244304,-500.0,0.00021917,2]
[358825179,1745476244314,-500.0,0.00021917,2]
[358825180,1745476244323,-500.0,0.00021917,2]
[358825181,1745476244333,-500.0,0.00021917,2]
[358825182,1745476244342,-500.0,0.00021917,2]
[358825183,1745476244351,-523.73468278,0.00021917,2]
[358825184,1745476244361,-500.0,0.00021917,2]
[358825185,1745476244371,-500.0,0.00021917,2]
[358825186,1745476244380,-500.0,0.00021917,2]
[358825187,1745476244390,-232.48641674,0.00021917,2]
[358825188,1745476244399,-700.69,0.00021917,2]
[358825189,1745476244409,-500.0,0.00021917,2]
[358825190,1745476244418,-512.24761659,0.00021917,2]
[358825191,1745476244428,-500.0,0.00021917,2]
[358825192,1745476244437,-500.0,0.00021917,2]
[358825193,1745476244447,-516.71088154,0.00021917,2]
[358825194,1745476244457,-500.0,0.00021917,2]
[358825196,1745476244466,-500.0,0.00021917,2]
[358825198,1745476244476,-1865.14,0.00021917,2]
[358825200,1745476244486,-500.0,0.00021917,2]
[358825201,1745476244495,-500.0,0.00021917,2]
[358825202,1745476244505,-390.14802017,0.00021917,2]
[358825203,1745476244514,-500.0,0.00021917,2]
[358825204,1745476244524,-2156.6,0.00021917,2]
[358825205,1745476244533,-1640.96,0.00021917,2]
[358825206,1745476244543,-500.0,0.00021917,2]
[358825207,1745476244553,-501.73816248,0.00021917,2]
[358825208,1745476244563,-500.0,0.00021917,2]
[358825209,1745476244573,-505.45995843,0.00021917,2]
[358825210,1745476244582,-259.00306284,0.00021917,2]
[358825214,1745476247450,-215.31231498,0.00021571,2]
[358825215,1745476247459,-240.99693716,0.00021917,2]
[358825216,1745476247469,-500.0,0.00021917,2]
[358825217,1745476247479,-531.1,0.00021917,2]
[358825218,1745476247489,-21.0860946,0.00021917,2]
[358825219,1745476247673,-1705.4239054,0.00021917,2]
[358825220,1745476247682,-151.0,0.00021917,2]
[358825221,1745476247691,-151.0,0.00021917,2]
[358825222,1745476247700,-151.0,0.00021917,2]
[358825223,1745476247709,-153.5998,0.00021917,2]
[358825224,1745476247719,-500.0,0.00021917,2]
[358825225,1745476247728,-151.0,0.00021917,2]
[358825226,1745476247737,-500.0,0.00021917,2]
[358825227,1745476247746,-151.0,0.00021917,2]
[358825228,1745476247755,-500.0,0.00021917,2]
[358825229,1745476247764,-151.0,0.00021917,2]
[358825230,1745476247774,-500.0,0.00021917,2]
[358825231,1745476247783,-899.48,0.00021917,2]
[358825232,1745476247792,-1107.02,0.00021917,2]
[358825233,1745476247802,-830.14,0.00021917,2]
[358825234,1745476247811,-500.0,0.00021917,2]
[358825235,1745476247821,-895.74,0.00021917,2]
[358825236,1745476247831,-500.0,0.00021917,2]
[358825237,1745476247840,-500.0,0.00021917,2]
[358825238,1745476247852,-503.21226093,0.00021917,2]
[358825239,1745476247862,-500.0,0.00021917,2]
[358825240,1745476247871,-962.55,0.00021917,2]
[358825241,1745476247880,-1294.78,0.00021917,2]
[358825242,1745476247890,-500.0,0.00021917,2]
[358825243,1745476247900,-371.4452492,0.00021917,2]
[358825244,1745476247910,-163.50651354,0.00021917,2]
[358825245,1745476247920,-505.6400833,0.00021917,2]
[358825246,1745476248031,-500.0,0.00021917,2]
[358825247,1745476248047,-500.0,0.00021917,2]
[358825248,1745476248056,-2727.09817644,0.00021917,2]
[358825249,1745476248068,-244.13182356,0.00021917,2]
[358825250,1745476248078,-151.0,0.00021917,2]
[358825251,1745476248089,-500.0,0.00021917,2]
[358825252,1745476248098,-271.92602444,0.00021917,2]
[358825260,1745476372737,-312.35400387,0.00016897,2]
[358825261,1745476378446,-169.74205284,0.00016897,2]
[358825262,1745476378469,-57.74779716,0.00016897,2]
[358825263,1745476383642,-282.65902611,0.00016897,2]
[358825264,1745476388823,-282.65902611,0.00016896,2]
[358825265,1745476394307,-168.12811076,0.00016896,2]
[358825266,1745476399320,-229.49439323,0.00016896,2]
[358825267,1745476401965,-102.37749601,0.00016896,2]
[358825268,1745476401991,-85.71583349,0.00016896,2]
[358825269,1745476405763,-242.78410404,0.00016896,2]
[358825270,1745476409245,-171.50006247,0.00016896,2]
[358825271,1745476409277,-71.28404157,0.00016896,2]
[358825272,1745476416343,-307.41472256,0.00016896,2]
[358825273,1745476423735,-121.30123587,0.00016896,2]
[358825274,1745476423766,-330.53845014,0.00016896,2]
[358825275,1745476428757,-152.68707532,0.00016796,2]
[358825276,1745476428792,-28.79019668,0.00016896,2]
[358825277,1745476434853,-140.67135318,0.00016896,2]
[358825278,1745476434883,-109.32864682,0.00016896,2]
[358825279,1745476438356,-390.67135318,0.00016896,2]
[358825280,1745476438386,-109.32864682,0.00016896,2]
[358825281,1745476443164,-227.621606,0.00016896,2]
[358825282,1745476447232,-163.04974718,0.00016896,2]
[358825283,1745476447263,-212.98349472,0.00016896,2]
[358825284,1745476454307,-287.01650528,0.00016896,2]
[358825285,1745476454487,-102.40381145,0.00016896,2]
[358825286,1745476460757,-216.46623265,0.00016896,2]
[358825287,1745476464625,-157.22851449,0.00016896,2]
[358825288,1745476470794,-195.78192902,0.00016796,2]
[358825289,1745476474127,-160.30065581,0.00016796,2]
[358825290,1745476478201,-61.5051379,0.00016796,2]
[358825291,1745476478229,-144.09410211,0.00016895,2]
[358825292,1745476481430,-152.0,0.00016895,2]
[358825293,1745476486582,-151.47685491,0.00016895,2]
[358825294,1745476489320,-52.42904298,0.00016895,2]
[358825295,1745476489345,-147.50314602,0.00016895,2]
[358825296,1745476494659,-105.06853081,0.00016895,2]
[358825297,1745476494682,-61.55122919,0.00016895,2]
[358825298,1745476502075,-219.39471768,0.00016895,2]
[358825299,1745476502100,-5.54132045,0.00016895,2]